fUST/lending_fUST_20250628
["ID","MTS","AMOUNT","RATE_DAILY","PERIOD"]
[368168112,1751045447328,-500.0,0.00019739,2]
[368168113,1751045447338,-6697.79257822,0.000199,2]
[368168114,1751045447347,-270.56836192,0.00019933,2]
[368168115,1751045447356,-485.62165416,0.00019975,2]
[368168116,1751045447366,-420.0,0.00019979,2]
[368168117,1751045447375,-250.35716426,0.0002,2]
[368168118,1751045447384,-395.89220383,0.0002,2]
[368168119,1751045447394,-460.0,0.0002,2]
[368168120,1751045447403,-460.0,0.0002,2]
[368168121,1751045447412,-400.54875,0.0002,2]
[368168122,1751045447514,-460.0,0.0002,2]
[368168123,1751045447524,-460.0,0.0002,2]
[368168124,1751045447534,-460.0,0.0002,2]
[368168125,1751045447543,-460.0,0.0002,2]
[368168126,1751045447553,-460.0,0.0002,2]
[368168127,1751045447562,-460.0,0.0002,2]
[368168128,1751045447571,-460.0,0.0002,2]
[368168129,1751045447580,-460.0,0.0002,2]
[368168130,1751045447590,-267.55799223,0.0002,2]
[368168131,1751045447599,-320.3769482,0.0002,2]
[368168132,1751045447608,-460.0,0.0002,2]
[368168133,1751045447618,-460.0,0.0002,2]
[368168134,1751045447627,-447.41043884,0.0002,2]
[368168135,1751045447636,-460.0,0.0002,2]
[368168136,1751045447646,-460.0,0.0002,2]
[368168137,1751045447655,-460.0,0.0002,2]
[368168138,1751045447665,-460.0,0.0002,2]
[368168139,1751045447674,-460.0,0.0002,2]
[368168140,1751045447684,-460.0,0.0002,2]
[368168141,1751045447693,-460.0,0.0002,2]
[368168142,1751045447702,-460.0,0.0002,2]
[368168143,1751045447711,-460.0,0.0002,2]
[368168144,1751045447721,-590.36,0.0002,2]
[368168145,1751045447730,-460.0,0.0002,2]
[368168146,1751045447739,-325.55,0.0002,2]
[368168147,1751045447748,-460.0,0.0002,2]
[368168148,1751045447758,-460.0,0.0002,2]
[368168149,1751045447767,-312.35563035,0.0002,2]
[368168150,1751045447776,-460.0,0.0002,2]
[368168151,1751045447786,-460.0,0.0002,2]
[368168152,1751045447795,-184.17940349,0.0002,2]
[368168153,1751045447804,-453.8543681,0.0002,2]
[368168154,1751045447813,-460.0,0.0002,2]
[368168155,1751045447823,-460.0,0.0002,2]
[368168156,1751045447832,-670.38,0.0002,2]
[368168157,1751045447841,-501.01,0.0002,2]
[368168158,1751045447850,-460.0,0.0002,2]
[368168159,1751045447860,-463.78861951,0.0002,2]
[368168160,1751045447870,-460.0,0.0002,2]
[368168161,1751045447879,-458.19878345,0.0002,2]
[368168162,1751045447888,-460.0,0.0002,2]
[368168163,1751045447898,-460.0,0.0002,2]
[368168164,1751045447907,-460.0,0.0002,2]
[368168165,1751045447917,-460.0,0.0002,2]
[368168166,1751045447926,-460.0,0.0002,2]
[368168167,1751045447935,-548.58,0.0002,2]
[368168168,1751045447944,-219.51,0.0002,2]
[368168169,1751045447954,-460.0,0.0002,2]
[368168170,1751045447963,-460.0,0.0002,2]
[368168171,1751045447972,-460.0,0.0002,2]
[368168172,1751045447982,-460.0,0.0002,2]
[368168173,1751045447992,-460.0,0.0002,2]
[368168174,1751045448001,-460.0,0.0002,2]
[368168175,1751045448011,-460.0,0.0002,2]
[368168176,1751045448020,-460.0,0.0002,2]
[368168177,1751045448029,-460.0,0.0002,2]
[368168178,1751045448039,-3668.02,0.0002,2]
[368168179,1751045448048,-460.0,0.0002,2]
[368168180,1751045448057,-1705.72,0.0002,2]
[368168181,1751045448067,-1159.82,0.0002,2]
[368168182,1751045448077,-460.0,0.0002,2]
[368168183,1751045448086,-3954.55,0.0002,2]
[368168184,1751045448096,-460.0,0.0002,2]
[368168185,1751045448105,-460.0,0.0002,2]
[368168186,1751045448114,-460.0,0.0002,2]
[368168187,1751045448123,-1311.29,0.0002,2]
[368168188,1751045448132,-1173.45,0.0002,2]
[368168189,1751045448141,-624.64,0.0002,2]
[368168190,1751045448150,-460.0,0.0002,2]
[368168191,1751045448159,-460.0,0.0002,2]
[368168192,1751045448168,-460.0,0.0002,2]
[368168193,1751045448177,-470.16,0.0002,2]
[368168194,1751045448186,-460.0,0.0002,2]
[368168195,1751045448196,-918.56,0.0002,2]
[368168196,1751045448205,-460.0,0.0002,2]
[368168197,1751045448214,-460.0,0.0002,2]
[368168198,1751045448223,-1943.03,0.0002,2]
[368168199,1751045448232,-460.0,0.0002,2]
[368168200,1751045448242,-460.0,0.0002,2]
[368168201,1751045448251,-460.0,0.0002,2]
[368168202,1751045448264,-460.0,0.0002,2]
[368168203,1751045448274,-1450.63,0.0002,2]
[368168204,1751045448284,-468.93,0.0002,2]
[368168205,1751045448293,-710.93,0.0002,2]
[368168206,1751045448303,-460.0,0.0002,2]
[368168207,1751045448312,-460.0,0.0002,2]
[368168208,1751045448322,-460.0,0.0002,2]
[368168209,1751045448331,-548.08,0.0002,2]
[368168210,1751045448342,-460.0,0.0002,2]
[368168211,1751045448351,-460.0,0.0002,2]
[368168212,1751045448361,-460.0,0.0002,2]
[368168213,1751045448370,-503.62,0.0002,2]
[368168214,1751045448380,-640.7,0.0002,2]
[368168215,1751045448390,-616.92,0.0002,2]
[368168216,1751045448399,-460.0,0.0002,2]
[368168217,1751045448409,-460.0,0.0002,2]
[368168218,1751045448419,-460.0,0.0002,2]
[368168219,1751045448429,-564.58,0.0002,2]
[368168220,1751045448439,-460.0,0.0002,2]
[368168221,1751045448449,-460.0,0.0002,2]
[368168222,1751045448460,-460.0,0.0002,2]
[368168223,1751045448470,-1736.72,0.0002,2]
[368168224,1751045448479,-460.0,0.0002,2]
[368168225,1751045448489,-2756.74,0.0002,2]
[368168226,1751045448499,-715.35,0.0002,2]
[368168227,1751045448508,-1353.18,0.0002,2]
[368168228,1751045448518,-460.0,0.0002,2]
[368168229,1751045448528,-460.0,0.0002,2]
[368168230,1751045448537,-485.2,0.0002,2]
[368168231,1751045448547,-597.29,0.0002,2]
[368168232,1751045448557,-4824.74,0.0002,2]
[368168233,1751045448567,-460.0,0.0002,2]
[368168234,1751045448577,-460.0,0.0002,2]
[368168235,1751045448587,-499.69,0.0002,2]
[368168236,1751045448596,-460.0,0.0002,2]
[368168237,1751045448606,-460.0,0.0002,2]
[368168238,1751045448616,-607.64,0.0002,2]
[368168239,1751045448626,-3660.51,0.0002,2]
[368168240,1751045448636,-1161.0,0.0002,2]
[368168241,1751045448645,-995.76,0.0002,2]
[368168242,1751045448655,-460.0,0.0002,2]
[368168243,1751045448664,-633.18,0.0002,2]
[368168244,1751045448674,-958.01,0.0002,2]
[368168245,1751045448684,-855.27,0.0002,2]
[368168246,1751045448693,-460.0,0.0002,2]
[368168247,1751045448703,-2488.95,0.0002,2]
[368168248,1751045448713,-460.0,0.0002,2]
[368168249,1751045448723,-1071.6,0.0002,2]
[368168250,1751045448732,-4236.78,0.0002,2]
[368168251,1751045448741,-617.96,0.0002,2]
[368168252,1751045448751,-1422.96,0.0002,2]
[368168253,1751045448760,-460.0,0.0002,2]
[368168254,1751045448769,-460.0,0.0002,2]
[368168255,1751045448779,-1000.0,0.00020021,2]
[368168256,1751045448787,-1000.0,0.00020021,2]
[368168257,1751045448797,-500.0,0.00020021,2]
[368168258,1751045448806,-160.0,0.00020049,2]
[368168259,1751045448815,-214.91804724,0.00020049,2]
[368168260,1751045448825,-160.0,0.00020049,2]
[368168261,1751045448834,-230.26210603,0.00020049,2]
[368168262,1751045448844,-12562.41216491,0.00020049,2]
[368168263,1751045448853,-847.04181546,0.00020049,2]
[368168264,1751045448862,-213.75309343,0.00020049,2]
[368168265,1751045448872,-160.0,0.00020049,2]
[368168266,1751045448881,-160.0,0.00020049,2]
[368168267,1751045448890,-836.98798914,0.00020049,2]
[368168268,1751045448899,-160.0,0.00020049,2]
[368168269,1751045448909,-160.0,0.00020049,2]
[368168270,1751045448918,-500.0,0.00020068,2]
[368168271,1751045448927,-458.91259767,0.00020068,2]
[368168272,1751045448937,-6697.79257794,0.00020107,2]
[368168273,1751045448947,-1500.0,0.00020268,2]
[368168274,1751045448956,-550.86069672,0.00020268,2]
[368168275,1751045448966,-1500.0,0.00020268,2]
[368168276,1751045448975,-460.0,0.00020273,2]
[368168277,1751045448985,-460.0,0.00020273,2]
[368168278,1751045448995,-460.0,0.00020273,2]
[368168279,1751045449005,-460.0,0.00020273,2]
[368168280,1751045449015,-460.0,0.00020273,2]
[368168281,1751045449025,-460.0,0.00020273,2]
[368168282,1751045449034,-460.0,0.00020273,2]
[368168283,1751045449043,-607.98,0.00020273,2]
[368168284,1751045449052,-462.2,0.00020273,2]
[368168285,1751045449062,-460.0,0.00020273,2]
[368168286,1751045449072,-538.52,0.00020273,2]
[368168287,1751045449081,-460.0,0.00020273,2]
[368168288,1751045449091,-460.0,0.00020273,2]
[368168289,1751045449100,-460.0,0.00020273,2]
[368168290,1751045449109,-355.44777927,0.00020273,2]
[368168291,1751045449119,-460.0,0.00020273,2]
[368168292,1751045449127,-460.0,0.00020273,2]
[368168293,1751045449137,-460.0,0.00020273,2]
[368168294,1751045449146,-274.57,0.00020273,2]
[368168295,1751045449156,-460.0,0.00020273,2]
[368168296,1751045449165,-163.47,0.00020273,2]
[368168297,1751045449175,-590.36,0.00020273,2]
[368168298,1751045449184,-460.0,0.00020273,2]
[368168299,1751045449193,-460.0,0.00020273,2]
[368168300,1751045449202,-460.0,0.00020273,2]
[368168301,1751045449212,-460.0,0.00020273,2]
[368168302,1751045449221,-460.0,0.00020273,2]
[368168303,1751045449230,-460.0,0.00020273,2]
[368168304,1751045449239,-460.0,0.00020273,2]
[368168305,1751045449249,-670.38,0.00020273,2]
[368168306,1751045449259,-501.01,0.00020273,2]
[368168307,1751045449272,-460.0,0.00020273,2]
[368168308,1751045449282,-460.0,0.00020273,2]
[368168309,1751045449291,-460.0,0.00020273,2]
[368168310,1751045449301,-460.0,0.00020273,2]
[368168311,1751045449311,-460.0,0.00020273,2]
[368168312,1751045449320,-548.58,0.00020273,2]
[368168313,1751045449329,-460.0,0.00020273,2]
[368168314,1751045449338,-460.0,0.00020273,2]
[368168315,1751045449348,-460.0,0.00020273,2]
[368168316,1751045449357,-460.0,0.00020273,2]
[368168317,1751045449367,-460.0,0.00020273,2]
[368168318,1751045449377,-548.15,0.00020273,2]
[368168319,1751045449386,-460.0,0.00020273,2]
[368168320,1751045449395,-460.0,0.00020273,2]
[368168321,1751045449404,-3668.02,0.00020273,2]
[368168322,1751045449414,-460.0,0.00020273,2]
[368168323,1751045449424,-1705.72,0.00020273,2]
[368168324,1751045449434,-1159.82,0.00020273,2]
[368168325,1751045449444,-3954.55,0.00020273,2]
[368168326,1751045449454,-460.0,0.00020273,2]
[368168327,1751045449464,-460.0,0.00020273,2]
[368168328,1751045449563,-1311.29,0.00020273,2]
[368168329,1751045449573,-1173.45,0.00020273,2]
[368168330,1751045449583,-624.64,0.00020273,2]
[368168331,1751045449592,-460.0,0.00020273,2]
[368168332,1751045449603,-460.0,0.00020273,2]
[368168333,1751045449613,-460.0,0.00020273,2]
[368168334,1751045449622,-470.16,0.00020273,2]
[368168335,1751045449632,-460.0,0.00020273,2]
[368168336,1751045449642,-918.56,0.00020273,2]
[368168337,1751045449651,-460.0,0.00020273,2]
[368168338,1751045449660,-1943.03,0.00020273,2]
[368168339,1751045449670,-460.0,0.00020273,2]
[368168340,1751045449679,-460.0,0.00020273,2]
[368168341,1751045449689,-460.0,0.00020273,2]
[368168342,1751045449698,-460.0,0.00020273,2]
[368168343,1751045449707,-1450.63,0.00020273,2]
[368168344,1751045449716,-468.93,0.00020273,2]
[368168345,1751045449726,-710.93,0.00020273,2]
[368168346,1751045449735,-460.0,0.00020273,2]
[368168347,1751045449744,-423.96325175,0.00020273,2]
[368168348,1751045449753,-548.08,0.00020273,2]
[368168349,1751045449763,-460.0,0.00020273,2]
[368168350,1751045449772,-358.75722486,0.00020273,2]
[368168351,1751045449781,-460.0,0.00020273,2]
[368168352,1751045449791,-503.62,0.00020273,2]
[368168353,1751045449800,-640.7,0.00020273,2]
[368168354,1751045449809,-616.92,0.00020273,2]
[368168355,1751045449819,-460.0,0.00020273,2]
[368168356,1751045449828,-460.0,0.00020273,2]
[368168357,1751045449838,-564.58,0.00020273,2]
[368168358,1751045449847,-460.0,0.00020273,2]
[368168359,1751045449856,-460.0,0.00020273,2]
[368168360,1751045449866,-460.0,0.00020273,2]
[368168361,1751045449875,-1736.72,0.00020273,2]
[368168362,1751045449885,-460.0,0.00020273,2]
[368168363,1751045449895,-2756.74,0.00020273,2]
[368168364,1751045449906,-715.35,0.00020273,2]
[368168365,1751045449915,-1353.18,0.00020273,2]
[368168366,1751045449924,-460.0,0.00020273,2]
[368168367,1751045449934,-460.0,0.00020273,2]
[368168368,1751045449944,-597.29,0.00020273,2]
[368168369,1751045449954,-4824.74,0.00020273,2]
[368168370,1751045449964,-460.0,0.00020273,2]
[368168371,1751045449974,-465.00230457,0.00020273,2]
[368168372,1751045449984,-499.69,0.00020273,2]
[368168373,1751045449994,-460.0,0.00020273,2]
[368168374,1751045450004,-460.0,0.00020273,2]
[368168375,1751045450014,-607.64,0.00020273,2]
[368168376,1751045450023,-3660.51,0.00020273,2]
[368168377,1751045450033,-1161.0,0.00020273,2]
[368168378,1751045450042,-995.76,0.00020273,2]
[368168379,1751045450052,-460.0,0.00020273,2]
[368168380,1751045450061,-633.18,0.00020273,2]
[368168381,1751045450071,-958.01,0.00020273,2]
[368168382,1751045450081,-855.27,0.00020273,2]
[368168383,1751045450090,-460.0,0.00020273,2]
[368168384,1751045450099,-2488.95,0.00020273,2]
[368168385,1751045450108,-460.0,0.00020273,2]
[368168386,1751045450118,-1071.6,0.00020273,2]
[368168387,1751045450128,-4236.78,0.00020273,2]
[368168388,1751045450138,-617.96,0.00020273,2]
[368168389,1751045450147,-1422.96,0.00020273,2]
[368168390,1751045450157,-460.0,0.00020273,2]
[368168391,1751045450166,-460.0,0.00020273,2]
[368168392,1751045450175,-820.42172575,0.00020287,2]
[368168393,1751045450185,-460.0,0.00020309,2]
[368168394,1751045450194,-460.0,0.00020309,2]
[368168395,1751045450203,-460.0,0.00020309,2]
[368168396,1751045450213,-460.0,0.00020309,2]
[368168397,1751045450222,-1000.0,0.00020309,2]
[368168398,1751045450231,-460.0,0.00020309,2]
[368168399,1751045450241,-460.0,0.00020309,2]
[368168400,1751045450251,-2705.17397757,0.00020311,2]
[368168401,1751045450262,-6697.79257794,0.00020314,3]
[368168402,1751045450274,-207.4,0.00020423,2]
[368168403,1751045450284,-5000.0,0.00020423,2]
[368168404,1751045450293,-666.0,0.00020423,2]
[368168405,1751045450303,-690.642,0.00020478,2]
[368168406,1751045450313,-6697.79257794,0.00020521,3]
[368168407,1751045450322,-263.42199,0.00020533,2]
[368168408,1751045450331,-1290.88,0.00020538,3]
[368168409,1751045450341,-645.44,0.00020538,3]
[368168410,1751045450350,-322.72,0.00020538,3]
[368168411,1751045450360,-160.0,0.00020538,3]
[368168412,1751045450369,-213.75309343,0.00020538,3]
[368168413,1751045450379,-847.04181546,0.00020538,3]
[368168414,1751045450388,-460.0,0.00020547,2]
[368168415,1751045450398,-460.0,0.00020547,2]
[368168416,1751045450408,-460.0,0.00020547,2]
[368168417,1751045450417,-460.0,0.00020547,2]
[368168418,1751045450426,-460.0,0.00020547,2]
[368168419,1751045450435,-479.16124575,0.00020547,2]
[368168420,1751045450445,-460.0,0.00020547,2]
[368168421,1751045450455,-460.0,0.00020547,2]
[368168422,1751045450464,-460.0,0.00020547,2]
[368168423,1751045450474,-590.36,0.00020547,2]
[368168424,1751045450483,-594.53,0.00020547,2]
[368168425,1751045450493,-460.0,0.00020547,2]
[368168426,1751045450502,-316.06441967,0.00020547,2]
[368168427,1751045450511,-460.0,0.00020547,2]
[368168428,1751045450521,-460.0,0.00020547,2]
[368168429,1751045450531,-670.38,0.00020547,2]
[368168430,1751045450541,-501.01,0.00020547,2]
[368168431,1751045450550,-460.0,0.00020547,2]
[368168432,1751045450559,-574.34,0.00020547,2]
[368168433,1751045450569,-460.0,0.00020547,2]
[368168434,1751045450578,-548.58,0.00020547,2]
[368168435,1751045450587,-460.0,0.00020547,2]
[368168436,1751045450596,-460.0,0.00020547,2]
[368168437,1751045450606,-460.0,0.00020547,2]
[368168438,1751045450615,-460.0,0.00020547,2]
[368168439,1751045450625,-568.14,0.00020547,2]
[368168440,1751045450634,-460.0,0.00020547,2]
[368168441,1751045450644,-460.0,0.00020547,2]
[368168442,1751045450653,-3668.02,0.00020547,2]
[368168443,1751045450663,-1705.72,0.00020547,2]
[368168444,1751045450672,-1159.82,0.00020547,2]
[368168445,1751045450681,-3954.55,0.00020547,2]
[368168446,1751045450691,-460.0,0.00020547,2]
[368168447,1751045450701,-460.0,0.00020547,2]
[368168448,1751045450711,-1311.29,0.00020547,2]
[368168449,1751045450720,-1173.45,0.00020547,2]
[368168450,1751045450730,-624.64,0.00020547,2]
[368168451,1751045450739,-460.0,0.00020547,2]
[368168452,1751045450749,-460.0,0.00020547,2]
[368168453,1751045450758,-460.0,0.00020547,2]
[368168454,1751045450768,-470.16,0.00020547,2]
[368168455,1751045450777,-460.0,0.00020547,2]
[368168456,1751045450787,-918.56,0.00020547,2]
[368168457,1751045450796,-460.0,0.00020547,2]
[368168458,1751045450805,-1943.03,0.00020547,2]
[368168459,1751045450814,-460.0,0.00020547,2]
[368168460,1751045450824,-460.0,0.00020547,2]
[368168461,1751045450834,-460.0,0.00020547,2]
[368168462,1751045450843,-460.0,0.00020547,2]
[368168463,1751045450852,-1450.63,0.00020547,2]
[368168464,1751045450861,-468.93,0.00020547,2]
[368168465,1751045450871,-710.93,0.00020547,2]
[368168466,1751045450880,-460.0,0.00020547,2]
[368168467,1751045450889,-548.08,0.00020547,2]
[368168468,1751045450898,-460.0,0.00020547,2]
[368168469,1751045450907,-478.44,0.00020547,2]
[368168470,1751045450917,-503.62,0.00020547,2]
[368168471,1751045450927,-640.7,0.00020547,2]
[368168472,1751045450936,-616.92,0.00020547,2]
[368168473,1751045450946,-460.0,0.00020547,2]
[368168474,1751045450958,-460.0,0.00020547,2]
[368168475,1751045450967,-564.58,0.00020547,2]
[368168476,1751045450976,-460.0,0.00020547,2]
[368168477,1751045450986,-460.0,0.00020547,2]
[368168478,1751045450996,-1736.72,0.00020547,2]
[368168479,1751045451005,-460.0,0.00020547,2]
[368168480,1751045451015,-2756.74,0.00020547,2]
[368168481,1751045451024,-715.35,0.00020547,2]
[368168482,1751045451033,-1353.18,0.00020547,2]
[368168483,1751045451042,-460.0,0.00020547,2]
[368168484,1751045451051,-460.0,0.00020547,2]
[368168485,1751045451061,-597.29,0.00020547,2]
[368168486,1751045451070,-4824.74,0.00020547,2]
[368168487,1751045451080,-460.0,0.00020547,2]
[368168488,1751045451090,-499.69,0.00020547,2]
[368168489,1751045451100,-460.0,0.00020547,2]
[368168490,1751045451109,-460.0,0.00020547,2]
[368168491,1751045451119,-607.64,0.00020547,2]
[368168492,1751045451129,-3660.51,0.00020547,2]
[368168493,1751045451140,-1161.0,0.00020547,2]
[368168494,1751045451150,-995.76,0.00020547,2]
[368168495,1751045451160,-460.0,0.00020547,2]
[368168496,1751045451170,-633.18,0.00020547,2]
[368168497,1751045451179,-958.01,0.00020547,2]
[368168498,1751045451189,-855.27,0.00020547,2]
[368168499,1751045451198,-460.0,0.00020547,2]
[368168500,1751045451207,-2488.95,0.00020547,2]
[368168501,1751045451217,-460.0,0.00020547,2]
[368168502,1751045451226,-1071.6,0.00020547,2]
[368168503,1751045451235,-4236.78,0.00020547,2]
[368168504,1751045451245,-617.96,0.00020547,2]
[368168505,1751045451255,-1422.96,0.00020547,2]
[368168506,1751045451269,-460.0,0.00020547,2]
[368168507,1751045451278,-1065.29893631,0.00020568,2]
[368168508,1751045451501,-434.70106369,0.00020568,2]
[368168509,1751045451511,-1465.69130697,0.00020568,2]
[368168510,1751045451521,-460.0,0.00020583,2]
[368168511,1751045451530,-460.0,0.00020583,2]
[368168512,1751045451540,-462.99246895,0.00020583,2]
[368168513,1751045451551,-460.0,0.00020583,2]
[368168514,1751045451561,-460.0,0.00020583,2]
[368168515,1751045451571,-151.0,0.000206,3]
[368168516,1751045451581,-2140.37,0.000206,2]
[368168517,1751045451590,-169.01433676,0.00020721,2]
[368168518,1751045451600,-6697.79257794,0.00020728,3]
[368168519,1751045451610,-2000.0,0.00020816,2]
[368168520,1751045451620,-2000.0,0.00020816,2]
[368168521,1751045451629,-460.0,0.00020821,2]
[368168522,1751045451639,-460.0,0.00020821,2]
[368168523,1751045451648,-460.0,0.00020821,2]
[368168524,1751045451658,-460.0,0.00020821,2]
[368168525,1751045451667,-460.0,0.00020821,2]
[368168526,1751045451677,-590.36,0.00020821,2]
[368168527,1751045451686,-460.0,0.00020821,2]
[368168528,1751045451695,-460.0,0.00020821,2]
[368168529,1751045451705,-460.0,0.00020821,2]
[368168530,1751045451714,-670.38,0.00020821,2]
[368168531,1751045451723,-501.01,0.00020821,2]
[368168532,1751045451732,-460.0,0.00020821,2]
[368168533,1751045451741,-460.0,0.00020821,2]
[368168534,1751045451751,-548.58,0.00020821,2]
[368168535,1751045451759,-460.0,0.00020821,2]
[368168536,1751045451770,-460.0,0.00020821,2]
[368168537,1751045451779,-460.0,0.00020821,2]
[368168538,1751045451788,-460.0,0.00020821,2]
[368168539,1751045451797,-460.0,0.00020821,2]
[368168540,1751045451807,-3668.02,0.00020821,2]
[368168541,1751045451816,-1705.72,0.00020821,2]
[368168542,1751045451827,-1159.82,0.00020821,2]
[368168543,1751045451837,-3954.55,0.00020821,2]
[368168544,1751045451848,-460.0,0.00020821,2]
[368168545,1751045451858,-460.0,0.00020821,2]
[368168546,1751045451867,-1311.29,0.00020821,2]
[368168547,1751045451876,-1173.45,0.00020821,2]
[368168548,1751045451885,-624.64,0.00020821,2]
[368168549,1751045451894,-460.0,0.00020821,2]
[368168550,1751045451904,-460.0,0.00020821,2]
[368168551,1751045451913,-460.0,0.00020821,2]
[368168552,1751045451923,-470.16,0.00020821,2]
[368168553,1751045451932,-460.0,0.00020821,2]
[368168554,1751045451941,-918.56,0.00020821,2]
[368168555,1751045451951,-460.0,0.00020821,2]
[368168556,1751045451960,-1943.03,0.00020821,2]
[368168557,1751045451970,-460.0,0.00020821,2]
[368168558,1751045451979,-460.0,0.00020821,2]
[368168559,1751045451988,-460.0,0.00020821,2]
[368168560,1751045451998,-1450.63,0.00020821,2]
[368168561,1751045452007,-468.93,0.00020821,2]
[368168562,1751045452017,-710.93,0.00020821,2]
[368168563,1751045452026,-460.0,0.00020821,2]
[368168564,1751045452035,-548.08,0.00020821,2]
[368168565,1751045452044,-460.0,0.00020821,2]
[368168566,1751045452054,-503.62,0.00020821,2]
[368168567,1751045452063,-640.7,0.00020821,2]
[368168568,1751045452072,-616.92,0.00020821,2]
[368168569,1751045452082,-460.0,0.00020821,2]
[368168570,1751045452092,-564.58,0.00020821,2]
[368168571,1751045452101,-460.0,0.00020821,2]
[368168572,1751045452110,-460.0,0.00020821,2]
[368168573,1751045452120,-1736.72,0.00020821,2]
[368168574,1751045452130,-460.0,0.00020821,2]
[368168575,1751045452139,-2756.74,0.00020821,2]
[368168576,1751045452148,-715.35,0.00020821,2]
[368168577,1751045452157,-1353.18,0.00020821,2]
[368168578,1751045452167,-2.94127393,0.00020821,2]
[368168579,1751045452360,-460.0,0.00019178,2]
[368168580,1751045452370,-543.48,0.00019178,2]
[368168581,1751045452380,-460.0,0.00019452,2]
[368168582,1751045452389,-543.48,0.00019452,2]
[368168583,1751045452399,-460.0,0.00019726,2]
[368168584,1751045452407,-543.48,0.00019726,2]
[368168585,1751045452417,-119.11255765,0.0002,2]
[368168586,1751045452560,-568.26287095,0.00018221,2]
[368168587,1751045452570,-340.88744235,0.0002,2]
[368168588,1751045452580,-543.48,0.0002,2]
[368168589,1751045452590,-460.0,0.00020273,2]
[368168590,1751045452599,-543.48,0.00020273,2]
[368168591,1751045452608,-460.0,0.00020547,2]
[368168592,1751045452618,-460.0,0.00020547,2]
[368168593,1751045452627,-543.48,0.00020547,2]
[368168594,1751045452636,-457.05872607,0.00020821,2]
[368168595,1751045452645,-460.0,0.00020821,2]
[368168596,1751045452655,-597.29,0.00020821,2]
[368168597,1751045452664,-4824.74,0.00020821,2]
[368168598,1751045452674,-460.0,0.00020821,2]
[368168599,1751045452683,-499.69,0.00020821,2]
[368168600,1751045452693,-315.28601818,0.00020821,2]
[368168601,1751045452703,-460.0,0.00020821,2]
[368168602,1751045452712,-607.64,0.00020821,2]
[368168603,1751045452722,-3660.51,0.00020821,2]
[368168604,1751045452731,-1161.0,0.00020821,2]
[368168605,1751045452740,-995.76,0.00020821,2]
[368168606,1751045452750,-460.0,0.00020821,2]
[368168607,1751045452759,-633.18,0.00020821,2]
[368168608,1751045452770,-958.01,0.00020821,2]
[368168609,1751045452779,-855.27,0.00020821,2]
[368168610,1751045452788,-432.22,0.00020821,2]
[368168611,1751045452797,-2488.95,0.00020821,2]